[Event "FAI-ch 2019"]
[Site "Torshavn"]
[Date "2019.04.15"]
[Round "3.1"]
[White "Miezis, Normunds"]
[Black "Ziska, Helgi Dam"]
[Result "1/2-1/2"]
[ECO "A26"]
[WhiteElo "2468"]
[BlackElo "2540"]
[Annotator "ChessBase"]
[PlyCount "24"]
[EventDate "2019.04.12"]
[EventType "tourn"]
[EventRounds "7"]
[EventCountry "FAI"]
[SourceTitle "playchess.com"]
[Source "ChessBase"]
[SourceQuality "1"]
[TimeControl "40/5400+30:900+30"]

1. c4 {[%emt 0:00:00]} g6 {[%emt 0:00:00]} 2. Nc3 {[%emt 0:00:08]} Bg7 {[%emt 0:00:00]} 3. g3 {[%emt 0:00:37]} d6 {[%emt 0:00:37]} 4. Bg2 {[%emt 0:00:14]} e5 {[%emt 0:01:03]} 5. d3 {[%emt 0:01:21]} Nc6 {[%emt 0:00:55]} 6. e4 {[%emt 0:00:43]} f5 {[%emt 0:00:52]} 7. Nge2 {[%emt 0:00:49]} Nf6 {[%emt 0:00:10]} 8. O-O {[%emt 0:02:25]} O-O {[%emt 0:01:34]} 9. Nd5 {[%emt 0:02:44]} Nh5 {[%emt 0:02:22]} 10. exf5 {[%emt 0:04:33]} Bxf5 {[%emt 0:00:35]} 11. h3 {[%emt 0:05:36]} Be6 {[%emt 0:01:36]} 12. g4 {[%emt 0:05:50]} Nf6 {[%emt 0:00:14]} 1/2-1/2

[Event "FAI-ch 2019"]
[Site "Torshavn"]
[Date "2019.04.16"]
[Round "4.3"]
[White "Samuelsen, Carl Eli Nolsoe"]
[Black "Berg, Olaf"]
[Result "1/2-1/2"]
[ECO "B91"]
[WhiteElo "2196"]
[BlackElo "2212"]
[Annotator "NA"]
[PlyCount "65"]
[EventDate "2019.04.12"]
[EventType "tourn"]
[EventRounds "7"]
[EventCountry "FAI"]
[SourceTitle "playchess.com"]
[Source "ChessBase"]
[SourceQuality "1"]
[TimeControl "40/5400+30:900+30"]

1. e4 {[%emt 0:00:00]} c5 {[%emt 0:00:00]} 2. Nf3 {[%emt 0:00:00]} d6 {[%emt 0:00:00]} 3. d4 {[%emt 0:00:00]} cxd4 {[%emt 0:00:07]} 4. Nxd4 {[%emt 0:00:00]} Nf6 {[%emt 0:00:22]} 5. Nc3 {[%emt 0:00:01]} a6 {[%emt 0:00:26]} 6. g3 {[%emt 0:00:41]} g6 {[%emt 0:05:53]} 7. Bg2 {[%emt 0:00:41] B91: Sicilian Najdorf: 6 g3} Bg7 {[%emt 0:00:39]} 8. h3 {[%emt 0:01:11]} Nbd7 {[%emt 0:02:41]} (8... O-O 9. O-O Bd7 10. Be3 Nc6 11. Nde2 Rc8 12. b3 b5 13. Nd5 Be6 14. Qd2 Ne5 15. f4 Ned7 16. Nd4 Nc5 17. Nxe6 Nxe6 18. Rac1 Nc5 19. Nxf6+ Bxf6 {½-½ (98) Grischuk,A (2767)-Nepomniachtchi,I (2751) Moscow 2018}) 9. O-O {[%emt 0:01:47]} Nc5 {[%emt 0:03:47]} 10. Be3 {[%emt 0:03:48]} Bd7 $146 {[%emt 0:03:41]} ({Predecessor:} 10... Qc7 11. a4 Rb8 {1-0 (29) Schweizer,M (2032)-Besancon,P (1691) Heusenstamm 2017}) 11. f4 {[%emt 0:07:49]} Qc7 {[%emt 0:23:51]} 12. Qd2 {[%emt 0:09:14]} e5 {[%emt 0:06:46]} 13. Nb3 {[%emt 0:09:14]} Nxb3 {[%emt 0:13:53]} 14. axb3 {[%emt 0:03:16]} Bc6 {[%emt 0:01:55]} 15. Rad1 {[%emt 0:10:08]} O-O-O {[%emt 0:08:12]} 16. Qf2 {[%emt 0:09:18]} Nd7 {[%emt 0:18:30]} 17. f5 {[%emt 0:10:27]} Kb8 {[%emt 0:02:52]} 18. Rd2 {[%emt 0:03:03]} Bf6 {[%emt 0:01:01]} 19. Rfd1 {[%emt 0:03:16]} Be7 {[%emt 0:00:08]} 20. Kh2 {[%emt 0:08:07]} f6 $1 $11 {[%emt 0:00:46] and Black stays safe.} (20... gxf5 $16 {was worth a try.} 21. Qxf5 Nf6) 21. Bf1 {[%emt 0:01:29]} (21. Ra1 $142) 21... Nc5 {[%emt 0:02:34]} 22. Bg2 $2 {[%emt 0:02:38]} (22. Re1 $16) 22... Qc8 $2 {[%emt 0:02:18]} 23. b4 {[%emt 0:01:23]} Na4 {[%emt 0:00:18]} 24. Nxa4 {[%emt 0:03:10]} Bxa4 {[%emt 0:00:05]} 25. b3 {[%emt 0:02:49]} Bc6 {[%emt 0:00:13]} 26. c4 {[%emt 0:00:32]} gxf5 {[%emt 0:00:35]} 27. exf5 {[%emt 0:00:54]} Bxg2 {[%emt 0:01:09]} 28. Kxg2 {[%emt 0:00:27]} d5 {[%emt 0:00:43]} 29. Rxd5 {[%emt 0:05:17]} Bxb4 $16 {[%emt 0:00:20]} 30. Bb6 {[%emt 0:02:11]} Rxd5 {[%emt 0:00:16]} 31. Rxd5 {[%emt 0:00:20]} Qc6 {[%emt 0:00:17]} 32. Kh2 {[%emt 0:00:28]} Re8 {[%emt 0:00:42]} 33. Qe3 {[%emt 0:00:38]} 1/2-1/2

[Event "FAI-ch 2019"]
[Site "Torshavn"]
[Date "2019.04.18"]
[Round "6.1"]
[White "Ziska, Helgi Dam"]
[Black "Simonsen, Hans Kristian"]
[Result "1-0"]
[ECO "B19"]
[WhiteElo "2540"]
[BlackElo "2147"]
[Annotator "ChessBase"]
[PlyCount "59"]
[EventDate "2019.04.12"]
[EventType "tourn"]
[EventRounds "7"]
[EventCountry "FAI"]
[SourceTitle "playchess.com"]
[Source "ChessBase"]
[SourceQuality "1"]
[TimeControl "40/5400+30:900+30"]

1. e4 {[%emt 0:00:00]} c6 {[%emt 0:00:00]} 2. d4 {[%emt 0:01:39]} d5 {[%emt 0:00:00]} 3. Nc3 {[%emt 0:00:38]} dxe4 {[%emt 0:00:00]} 4. Nxe4 {[%emt 0:00:05]} Bf5 {[%emt 0:00:03]} 5. Ng3 {[%emt 0:01:05]} Bg6 {[%emt 0:00:07]} 6. h4 {[%emt 0:01:06]} h6 {[%emt 0:00:05]} 7. Nf3 {[%emt 0:00:09]} Nd7 {[%emt 0:00:11]} 8. h5 {[%emt 0:00:07]} Bh7 {[%emt 0:00:23]} 9. Bd3 {[%emt 0:00:20]} Bxd3 {[%emt 0:00:16]} 10. Qxd3 {[%emt 0:00:04]} e6 {[%emt 0:00:11]} 11. Bd2 {[%emt 0:01:01]} Ngf6 {[%emt 0:00:07]} 12. O-O-O {[%emt 0:00:23]} Be7 {[%emt 0:00:12]} 13. Qe2 {[%emt 0:03:16]} Qb6 {[%emt 0:00:44]} 14. Rhe1 {[%emt 0:21:49]} O-O {[%emt 0:02:06]} 15. Ne5 {[%emt 0:00:55]} Rad8 {[%emt 0:02:11]} 16. Ng6 {[%emt 0:14:19]} fxg6 {[%emt 0:03:25]} 17. Qxe6+ {[%emt 0:00:04]} Kh8 {[%emt 0:00:19]} 18. Qxe7 {[%emt 0:00:23]} Nxh5 {[%emt 0:00:32]} 19. Nxh5 {[%emt 0:01:07]} gxh5 {[%emt 0:00:07]} 20. Bxh6 {[%emt 0:02:07]} Rg8 {[%emt 0:03:12]} 21. Bg5 {[%emt 0:08:26]} Qa5 {[%emt 0:03:57]} 22. Rh1 {[%emt 0:03:43]} Rge8 {[%emt 0:00:50]} 23. Qf7 {[%emt 0:02:41]} Qxg5+ {[%emt 0:00:09]} 24. f4 {[%emt 0:00:05]} Qg4 {[%emt 0:04:02]} 25. Rxh5+ {[%emt 0:00:45]} Qxh5 {[%emt 0:00:06]} 26. Qxh5+ {[%emt 0:00:08]} Kg8 {[%emt 0:00:10]} 27. Qa5 {[%emt 0:00:37]} Nf6 {[%emt 0:00:38]} 28. Qxa7 {[%emt 0:00:30]} Ra8 {[%emt 0:00:29]} 29. Qxb7 {[%emt 0:00:14]} Rxa2 {[%emt 0:03:19]} 30. Qb3+ {[%emt 0:00:09]} 1-0

[Event "FAI-ch 2019"]
[Site "Torshavn"]
[Date "2019.04.18"]
[Round "6.3"]
[White "Miezis, Normunds"]
[Black "Dragicevic, Drazen"]
[Result "0-1"]
[ECO "A13"]
[WhiteElo "2468"]
[BlackElo "2334"]
[Annotator "ChessBase"]
[PlyCount "136"]
[EventDate "2019.04.12"]
[EventType "tourn"]
[EventRounds "7"]
[EventCountry "FAI"]
[SourceTitle "playchess.com"]
[Source "ChessBase"]
[SourceQuality "1"]
[TimeControl "40/5400+30:900+30"]

1. c4 {[%emt 0:00:00]} e6 {[%emt 0:00:00]} 2. e4 {[%emt 0:00:50]} c5 {[%emt 0:00:43]} 3. Nc3 {[%emt 0:00:36]} Nc6 {[%emt 0:00:14]} 4. Nf3 {[%emt 0:01:15]} Nge7 {[%emt 0:04:21]} 5. d4 {[%emt 0:05:40]} Nxd4 {[%emt 0:02:13]} 6. Nxd4 {[%emt 0:00:29]} cxd4 {[%emt 0:00:23]} 7. Qxd4 {[%emt 0:00:11]} Nc6 {[%emt 0:00:30]} 8. Qd2 {[%emt 0:02:55]} Bc5 {[%emt 0:04:02]} 9. Be2 {[%emt 0:03:08]} O-O {[%emt 0:04:39]} 10. O-O {[%emt 0:00:11]} a6 {[%emt 0:01:03]} 11. b3 {[%emt 0:08:28]} d6 {[%emt 0:07:03]} 12. Bb2 {[%emt 0:03:09]} e5 {[%emt 0:03:05]} 13. Kh1 {[%emt 0:02:28]} Nd4 {[%emt 0:05:22]} 14. Bd3 {[%emt 0:02:13]} Qa5 {[%emt 0:07:00]} 15. f4 {[%emt 0:02:53]} b5 {[%emt 0:08:07]} 16. Qd1 {[%emt 0:12:45]} Bb7 {[%emt 0:07:22]} 17. Nd5 {[%emt 0:13:06]} Bxd5 {[%emt 0:09:32]} 18. exd5 {[%emt 0:02:19]} bxc4 {[%emt 0:01:21]} 19. Bxc4 {[%emt 0:02:23]} Nf5 {[%emt 0:11:49]} 20. Qd3 {[%emt 0:09:13]} Ne3 {[%emt 0:05:22]} 21. Bc3 {[%emt 0:02:00]} Qd8 {[%emt 0:05:53]} 22. Rf3 {[%emt 0:02:36]} exf4 {[%emt 0:00:30]} 23. Rxf4 {[%emt 0:01:45]} Qg5 {[%emt 0:00:48]} 24. g3 {[%emt 0:00:52]} Rae8 {[%emt 0:01:36]} 25. b4 {[%emt 0:11:42]} Bb6 {[%emt 0:01:51]} 26. Bd2 {[%emt 0:00:33]} Qh5 {[%emt 0:01:55]} 27. Bxe3 {[%emt 0:03:13]} Rxe3 {[%emt 0:00:46]} 28. Qf5 {[%emt 0:00:46]} g5 {[%emt 0:03:01]} 29. Re4 {[%emt 0:03:10]} Rxg3 {[%emt 0:01:06]} 30. Be2 {[%emt 0:01:07]} Qh6 {[%emt 0:00:39]} 31. Bg4 {[%emt 0:01:38]} Re3 {[%emt 0:02:00]} 32. Rf1 {[%emt 0:00:53]} Qg6 {[%emt 0:00:53]} 33. Re1 {[%emt 0:01:21]} Qxf5 {[%emt 0:00:28]} 34. Bxf5 {[%emt 0:00:05]} Rxe1+ {[%emt 0:00:38]} 35. Rxe1 {[%emt 0:00:04]} a5 {[%emt 0:00:33]} 36. b5 {[%emt 0:01:26]} a4 {[%emt 0:00:23]} 37. a3 {[%emt 0:00:19]} Bc5 {[%emt 0:00:18]} 38. Re4 {[%emt 0:00:36]} Ra8 {[%emt 0:00:12]} 39. Bd7 {[%emt 0:00:29]} Bxa3 {[%emt 0:00:35]} 40. Bc6 {[%emt 0:00:00]} Rb8 {[%emt 0:00:00]} 41. Rxa4 {[%emt 0:01:13]} Bc5 {[%emt 0:03:20]} 42. h4 {[%emt 0:00:24]} h6 {[%emt 0:00:29]} 43. Kg2 {[%emt 0:01:05]} Kg7 {[%emt 0:00:08]} 44. Re4 {[%emt 0:01:14]} Kf6 {[%emt 0:02:42]} 45. Kf3 {[%emt 0:00:47]} Rc8 {[%emt 0:05:22]} 46. Kg4 {[%emt 0:02:06]} h5+ {[%emt 0:03:33]} 47. Kg3 {[%emt 0:02:26]} g4 {[%emt 0:00:01]} 48. Rf4+ {[%emt 0:01:56]} Kg6 {[%emt 0:00:11]} 49. Ra4 {[%emt 0:00:36]} Rc7 {[%emt 0:00:45]} 50. Ra6 {[%emt 0:00:23]} Ra7 {[%emt 0:01:05]} 51. Kf4 {[%emt 0:01:05]} Kf6 {[%emt 0:00:56]} 52. Ba8 {[%emt 0:02:34]} Ke7 {[%emt 0:01:33]} 53. Bc6 {[%emt 0:01:04]} f5 {[%emt 0:01:02]} 54. Rxa7+ {[%emt 0:02:40]} Bxa7 {[%emt 0:00:02]} 55. Bb7 {[%emt 0:01:10]} Bd4 {[%emt 0:01:36]} 56. Bc8 {[%emt 0:00:32]} Be5+ {[%emt 0:00:08]} 57. Ke3 {[%emt 0:00:24]} f4+ {[%emt 0:00:05]} 58. Ke4 {[%emt 0:00:17]} f3 {[%emt 0:01:09]} 59. b6 {[%emt 0:00:46]} Kd8 {[%emt 0:00:12]} 60. Ba6 {[%emt 0:00:47]} Bf6 {[%emt 0:00:40]} 61. Bd3 {[%emt 0:00:58]} Bxh4 {[%emt 0:00:23]} 62. Ke3 {[%emt 0:00:11]} Bg5+ {[%emt 0:00:17]} 63. Kf2 {[%emt 0:00:04]} Bh4+ {[%emt 0:00:13]} 64. Ke3 {[%emt 0:00:24]} Bg5+ {[%emt 0:00:21]} 65. Kf2 {[%emt 0:00:02]} Bf6 {[%emt 0:00:06]} 66. Ke3 {[%emt 0:02:17]} Be5 {[%emt 0:01:51]} 67. Bg6 {[%emt 0:01:00]} h4 {[%emt 0:00:08]} 68. Bf5 {[%emt 0:00:45]} Bd4+ {[%emt 0:00:47]} 0-1

[Event "FAI-ch 2019"]
[Site "Torshavn"]
[Date "2019.04.18"]
[Round "6.4"]
[White "Hoi, Carsten"]
[Black "Berg, Olaf"]
[Result "0-1"]
[ECO "E12"]
[WhiteElo "2354"]
[BlackElo "2212"]
[Annotator "NA"]
[PlyCount "70"]
[EventDate "2019.04.12"]
[EventType "tourn"]
[EventRounds "7"]
[EventCountry "FAI"]
[SourceTitle "playchess.com"]
[Source "ChessBase"]
[SourceQuality "1"]
[TimeControl "40/5400+30:900+30"]

1. Nf3 {[%emt 0:00:00]} Nf6 {[%emt 0:00:00]} 2. c4 {[%emt 0:00:26]} b6 {[%emt 0:00:24]} 3. d4 {[%emt 0:00:30]} e6 {[%emt 0:00:39]} 4. a3 {[%emt 0:01:52]} Bb7 {[%emt 0:00:24]} 5. Nc3 {[%emt 0:00:32]} d5 {[%emt 0:02:45]} 6. Bg5 {[%emt 0:01:18]} Nbd7 {[%emt 0:02:14]} 7. e3 {[%emt 0:03:28]} Be7 {[%emt 0:00:47]} 8. Bd3 {[%emt 0:07:15]} a6 {[%emt 0:06:59]} 9. cxd5 {[%emt 0:05:33]} exd5 {[%emt 0:00:43]} 10. Qc2 {[%emt 0:05:03]} c5 {[%emt 0:10:19]} 11. O-O {[%emt 0:02:07]} O-O {[%emt 0:01:59]} 12. Rad1 {[%emt 0:10:22]} Re8 {[%emt 0:10:02]} 13. Ne5 {[%emt 0:07:51]} Nf8 {[%emt 0:06:37]} 14. f4 {[%emt 0:03:59]} Rc8 {[%emt 0:16:13]} 15. Qe2 {[%emt 0:19:00]} cxd4 {[%emt 0:03:34]} 16. exd4 {[%emt 0:00:26]} b5 {[%emt 0:03:03]} 17. Bxf6 {[%emt 0:01:57]} Bxf6 {[%emt 0:00:57]} 18. Kh1 {[%emt 0:03:19]} Rc7 {[%emt 0:05:15]} 19. Bb1 {[%emt 0:04:41]} Rce7 {[%emt 0:01:00]} 20. Qf3 {[%emt 0:00:45]} Re6 {[%emt 0:05:44]} 21. Qh3 {[%emt 0:03:32]} Rd6 {[%emt 0:01:38]} 22. Qd3 {[%emt 0:03:24]} g6 {[%emt 0:01:27]} 23. Qf3 {[%emt 0:02:12]} Qc7 {[%emt 0:06:13]} 24. Rde1 {[%emt 0:01:31]} Qb6 {[%emt 0:01:06]} 25. Qd3 {[%emt 0:03:01]} Bc8 {[%emt 0:04:20]} 26. Qd2 {[%emt 0:01:07]} Ne6 {[%emt 0:01:56]} 27. Ne2 {[%emt 0:02:17]} Bg7 {[%emt 0:02:36]} 28. f5 {[%emt 0:04:15]} Nxd4 {[%emt 0:00:06]} 29. fxg6 {[%emt 0:00:18]} hxg6 {[%emt 0:00:21]} 30. Nxf7 {[%emt 0:01:45]} Rde6 {[%emt 0:00:09]} 31. Ng5 {[%emt 0:00:57]} Rxe2 {[%emt 0:00:19]} 32. Rxe2 {[%emt 0:00:04]} Rxe2 {[%emt 0:00:25]} 33. Qf4 {[%emt 0:00:23]} Qf6 {[%emt 0:01:27]} 34. Qc1 {[%emt 0:00:26]} Bf5 {[%emt 0:01:30]} 35. Qf4 {[%emt 0:01:16]} Bxb1 {[%emt 0:01:56]} 0-1

[Event "FAI-ch 2019"]
[Site "Torshavn"]
[Date "2019.04.19"]
[Round "7.1"]
[White "Berg, Olaf"]
[Black "Ziska, Helgi Dam"]
[Result "0-1"]
[ECO "A05"]
[WhiteElo "2212"]
[BlackElo "2540"]
[Annotator "ChessBase"]
[PlyCount "70"]
[EventDate "2019.04.12"]
[EventType "tourn"]
[EventRounds "7"]
[EventCountry "FAI"]
[SourceTitle "playchess.com"]
[Source "ChessBase"]
[SourceQuality "1"]
[TimeControl "40/5400+30:900+30"]

1. Nf3 {[%emt 0:00:00]} Nf6 {[%emt 0:00:00]} 2. b3 {[%emt 0:00:00]} g6 {[%emt 0:02:05]} 3. Bb2 {[%emt 0:00:00]} Bg7 {[%emt 0:01:18]} 4. g3 {[%emt 0:01:45]} O-O {[%emt 0:02:17]} 5. Bg2 {[%emt 0:00:15]} d6 {[%emt 0:01:32]} 6. O-O {[%emt 0:01:55]} e5 {[%emt 0:01:55]} 7. e3 {[%emt 0:00:35]} Re8 {[%emt 0:04:55]} 8. d3 {[%emt 0:04:15]} Nc6 {[%emt 0:07:34]} 9. Nbd2 {[%emt 0:01:28]} a5 {[%emt 0:03:45]} 10. a3 {[%emt 0:01:33]} d5 {[%emt 0:02:07]} 11. e4 {[%emt 0:02:54]} h6 {[%emt 0:08:43]} 12. Re1 {[%emt 0:04:48]} d4 {[%emt 0:01:05]} 13. Qb1 Be6 14. c3 dxc3 15. Bxc3 Nd7 16. b4 axb4 17. axb4 b5 18. Qc2 Rxa1 19. Rxa1 Nb6 20. Bf1 Qd6 21. Ra6 Bc8 22. Ra1 Be6 23. Be2 Rc8 24. Rb1 Ra8 25. Nb3 Na4 26. Na5 Nxa5 27. bxa5 Qc5 28. Rc1 Qxc3 29. Qxc3 Nxc3 30. Rxc3 Rxa5 31. Kg2 Ra2 32. Bd1 Ra1 33. Bc2 b4 34. Rc6 b3 35. Rxe6 bxc2 0-1

[Event "FAI-ch 2019"]
[Site "Torshavn"]
[Date "2019.04.19"]
[Round "7.2"]
[White "Dragicevic, Drazen"]
[Black "Hoi, Carsten"]
[Result "1-0"]
[ECO "A26"]
[WhiteElo "2334"]
[BlackElo "2354"]
[Annotator "NA"]
[PlyCount "73"]
[EventDate "2019.04.12"]
[EventType "tourn"]
[EventRounds "7"]
[EventCountry "FAI"]
[SourceTitle "playchess.com"]
[Source "ChessBase"]
[SourceQuality "1"]
[TimeControl "40/5400+30:900+30"]

1. c4 {[%emt 0:00:00]} g6 {[%emt 0:00:43]} 2. g3 {[%emt 0:00:11]} Bg7 {[%emt 0:00:21]} 3. Bg2 {[%emt 0:00:15]} Nc6 {[%emt 0:02:06]} 4. Nc3 {[%emt 0:00:51]} d6 {[%emt 0:00:31]} 5. d3 {[%emt 0:01:48]} e5 {[%emt 0:01:59]} 6. e4 {[%emt 0:02:12]} f5 {[%emt 0:05:39]} 7. Nge2 {[%emt 0:03:51]} Nf6 {[%emt 0:00:21]} 8. O-O {[%emt 0:01:48]} O-O {[%emt 0:00:19]} 9. Nd5 {[%emt 0:07:59]} fxe4 {[%emt 0:14:45]} 10. dxe4 {[%emt 0:00:41]} Bg4 {[%emt 0:02:03]} 11. f3 {[%emt 0:01:03]} Be6 {[%emt 0:00:32]} 12. Be3 {[%emt 0:01:32]} h6 {[%emt 0:05:19]} 13. Rc1 Kh7 14. Qd2 Ne7 15. Rfd1 Nexd5 16. cxd5 Bd7 17. Qb4 b6 18. Qc4 Ne8 19. Rd3 h5 20. Bf2 Bh6 21. Rc2 Rf7 22. Ra3 a5 23. Nc3 h4 24. Nb5 hxg3 25. hxg3 Qg5 26. Qf1 Bc8 27. Rac3 Ba6 28. Bh3 Ra7 29. a4 Nf6 30. Be6 Rg7 31. Be1 Nh5 32. Qg2 Bxb5 33. axb5 Qd8 34. Qh1 a4 35. g4 a3 36. bxa3 Qg5 37. Kf1 1-0

[Event "FAI-ch 2019"]
[Site "Torshavn"]
[Date "2019.04.19"]
[Round "7.3"]
[White "Thorsteinsson, Sjurdur"]
[Black "Miezis, Normunds"]
[Result "0-1"]
[ECO "E38"]
[WhiteElo "2228"]
[BlackElo "2468"]
[Annotator "ChessBase"]
[PlyCount "58"]
[EventDate "2019.04.12"]
[EventType "tourn"]
[EventRounds "7"]
[EventCountry "FAI"]
[SourceTitle "playchess.com"]
[Source "ChessBase"]
[SourceQuality "1"]
[TimeControl "40/5400+30:900+30"]

1. d4 {[%emt 0:00:00]} Nf6 {[%emt 0:00:00]} 2. c4 {[%emt 0:00:00]} e6 {[%emt 0:00:28]} 3. Nc3 {[%emt 0:00:00]} Bb4 {[%emt 0:00:25]} 4. Qc2 {[%emt 0:00:16]} c5 {[%emt 0:02:17]} 5. dxc5 {[%emt 0:00:13]} Nc6 {[%emt 0:01:04]} 6. Nf3 {[%emt 0:01:32]} Bxc5 {[%emt 0:01:32]} 7. Bf4 {[%emt 0:02:23]} e5 {[%emt 0:04:39]} 8. Bg3 {[%emt 0:21:05]} Nd4 {[%emt 0:14:22]} 9. Nxd4 {[%emt 0:09:28]} exd4 10. Ne4 Bb4+ 11. Nd2 Qa5 12. a3 d5 13. Rc1 Be7 14. Qd3 dxc4 15. Rxc4 Be6 16. Rc1 O-O 17. e4 dxe3 18. fxe3 Rac8 19. Rxc8 Rxc8 20. b4 Rc1+ 21. Kf2 Ng4+ 22. Kg1 Qd5 23. Qxd5 Bxd5 24. Bf4 g5 25. Bb8 a5 26. h3 Nxe3 27. bxa5 Nxf1 28. Nxf1 Bc5+ 29. Kh2 Rc2 0-1

[Event "FAI-ch 2019"]
[Site "Torshavn"]
[Date "2019.04.19"]
[Round "7.4"]
[White "Simonsen, Hans Kristian"]
[Black "Samuelsen, Carl Eli Nolsoe"]
[Result "1/2-1/2"]
[ECO "A45"]
[WhiteElo "2147"]
[BlackElo "2196"]
[Annotator "NA"]
[PlyCount "22"]
[EventDate "2019.04.12"]
[EventType "tourn"]
[EventRounds "7"]
[EventCountry "FAI"]
[SourceTitle "playchess.com"]
[Source "ChessBase"]
[SourceQuality "1"]
[TimeControl "40/5400+30:900+30"]

1. d4 {[%emt 0:00:00]} Nf6 {[%emt 0:00:00]} 2. Bf4 {[%emt 0:00:00]} d6 {[%emt 0:00:30]} 3. Nc3 {[%emt 0:00:00]} g6 {[%emt 0:00:28]} 4. e4 {[%emt 0:00:03]} Bg7 {[%emt 0:00:50]} 5. Qd2 {[%emt 0:00:07]} Nbd7 {[%emt 0:01:40]} 6. O-O-O {[%emt 0:00:11]} O-O {[%emt 0:05:47]} 7. Nf3 {[%emt 0:04:12]} c5 {[%emt 0:02:08]} 8. Bh6 {[%emt 0:01:27]} Qa5 {[%emt 0:13:50]} 9. Bxg7 {[%emt 0:02:42]} Kxg7 {[%emt 0:00:09]} 10. h4 {[%emt 0:03:19]} cxd4 {[%emt 0:02:23]} 11. Nxd4 {[%emt 0:01:04]} h5 {[%emt 0:06:00]} 1/2-1/2